bitfinex/quotes_SOLUSD_20230112
["timestamp","ask_amount","ask_price","bid_price","bid_amount"]
[1673534434439,47.16,15.907,15.884,160.0442]
[1673534434640,232.06,15.907,15.885,40.0]
[1673534434849,251.20496728,15.907,15.885,40.0]
[1673534435287,251.20496728,15.907,15.885,20.0]
[1673534435710,6.91193,15.906,15.885,20.0]
[1673534435901,22.48,15.9,15.885,20.0]
[1673534436112,17.0,15.899,15.885,20.0]
[1673534437792,22.48,15.9,15.885,20.0]
[1673534437996,47.15,15.909,15.885,20.0]
[1673534438220,47.15,15.909,15.886,20.0]
[1673534438434,19.14496728,15.908,15.887,20.0]
[1673534438632,47.16,15.907,15.887,20.0]
[1673534438845,47.16,15.907,15.888,111.0265]
[1673534439172,47.15,15.909,15.889,20.0]
[1673534440004,47.15,15.909,15.889,36.49934385]
[1673534440214,47.15,15.909,15.889,20.0]
[1673534440645,22.6,15.91,15.89,83.70934385]
[1673534440849,22.6,15.91,15.891,20.0]
[1673534441161,47.13,15.916,15.892,67.2]
[1673534441383,47.13,15.916,15.892,83.69934385]
[1673534441577,47.13,15.916,15.893,16.49934385]
[1673534441918,47.13,15.916,15.892,67.2]
[1673534441919,232.03,15.916,15.894,67.2]
[1673534442107,232.03,15.916,15.895,20.0]
[1673534442524,237.61071,15.916,15.895,20.0]
[1673534442752,237.61071,15.916,15.896,230.7305]
[1673534442986,237.61071,15.916,15.897,20.0]
[1673534444542,17.0,15.915,15.897,20.0]
[1673534444736,22.48,15.91,15.892,47.2]
[1673534444942,22.48,15.91,15.877,20.0]
[1673534444943,64.15,15.909,15.889,119.974]
[1673534445167,184.9,15.908,15.889,119.974]
[1673534445374,184.9,15.906,15.889,119.974]
[1673534445594,249.06,15.905,15.889,119.974]
[1673534445786,232.06,15.905,15.889,119.974]
[1673534446002,17.0,15.904,15.889,119.974]
[1673534446217,22.48,15.9,15.881,47.23]
[1673534446431,249.08,15.899,15.884,119.974]
[1673534446764,249.08,15.899,15.88,109.8338]
[1673534446765,268.22496728,15.899,15.88,109.8338]
[1673534446935,22.52,15.89,15.878,119.974]
[1673534447146,17.0,15.889,15.869,67.27]
[1673534447476,64.21,15.889,15.873,119.974]
[1673534447687,17.0,15.889,15.873,119.974]
[1673534449774,184.9,15.887,15.865,47.28]
[1673534449987,47.21,15.888,15.865,116.8448]
[1673534449988,22.52,15.88,15.865,116.8448]
[1673534450303,17.0,15.879,15.865,116.8448]
[1673534451804,17.0,15.879,15.865,117.79803805]
[1673534452629,22.52,15.88,15.865,117.79803805]
[1673534452850,22.52,15.88,15.866,47.28]
[1673534453052,204.9,15.889,15.866,47.28]
[1673534453258,184.9,15.889,15.867,20.0]
[1673534453484,47.21,15.888,15.867,20.0]
[1673534453674,22.3,15.89,15.868,47.27]
[1673534453886,45.02,15.89,15.867,20.0]
[1673534454196,22.52,15.88,15.867,20.0]
[1673534454627,22.52,15.88,15.866,20.0]
[1673534454841,22.52,15.88,15.866,40.0]
[1673534455261,17.0,15.879,15.866,40.0]
[1673534455665,17.0,15.879,15.866,20.0]
[1673534455886,17.0,15.879,15.866,40.0]
[1673534456517,17.0,15.879,15.865,20.0]
[1673534456721,184.9,15.878,15.86,47.3]
[1673534456932,17.0,15.877,15.86,115.2359]
[1673534457351,17.0,15.878,15.86,162.5359]
[1673534457585,17.0,15.878,15.86,115.2359]
[1673534457793,201.9,15.878,15.86,115.2359]
[1673534458005,20.0,15.877,15.86,115.2359]
[1673534458206,184.9,15.875,15.861,0.96163123]
[1673534458528,64.25,15.876,15.831,111.96426415]
[1673534458529,287.1984533,15.858,15.831,111.96426415]
[1673534458719,287.1984533,15.858,15.816,101.87050581]
[1673534458721,184.9,15.856,15.826,115.2359]
[1673534458930,204.9,15.854,15.826,115.2359]
[1673534459300,20.0,15.851,15.847,21.996845]
[1673534459470,210.50577,15.85,15.847,21.996845]
[1673534459674,237.83577,15.849,15.847,21.996845]
[1673534460000,5.60577,15.848,15.847,21.996845]
[1673534460532,50.2181393,15.848,15.847,10.996845]
[1673534460925,20.0,15.856,15.847,10.996845]
[1673534461136,19.14496728,15.855,15.847,10.996845]
[1673534461342,26.91193,15.854,15.847,10.996845]
[1673534461551,6.91193,15.853,15.847,10.996845]
[1673534462200,19.14496728,15.857,15.847,10.996845]
[1673534462416,102.2984533,15.858,15.847,10.996845]
[1673534463874,20.0,15.857,15.847,10.996845]
[1673534464092,20.0,15.855,15.827,20.0]
[1673534464298,207.62,15.85,15.827,20.0]
[1673534464596,207.62,15.85,15.826,135.2359]
[1673534464597,112.6,15.84,15.826,115.2359]
[1673534464821,112.24,15.84,15.826,115.2359]
[1673534465034,22.38,15.84,15.826,115.2359]
[1673534466302,17.0,15.839,15.826,115.2359]
[1673534466514,22.38,15.84,15.826,115.2359]
[1673534466913,22.38,15.84,15.825,168.9033588]
[1673534467120,22.48,15.83,15.825,168.9033588]
[1673534468182,17.0,15.829,15.825,168.9033588]
[1673534468725,52.9787,15.839,15.825,168.9033588]
[1673534469038,112.9,15.84,15.825,168.9033588]
[1673534469226,22.74,15.84,15.825,168.9033588]
[1673534469445,20.0,15.839,15.825,168.9033588]
[1673534469658,112.82,15.84,15.826,20.0]
[1673534470510,17.0,15.839,15.826,20.0]
[1673534470712,112.82,15.84,15.826,20.0]
[1673534471142,112.82,15.84,15.825,168.9033588]
[1673534471563,22.52,15.83,15.825,168.9033588]
[1673534472176,17.0,15.829,15.825,168.9033588]
[1673534472386,47.39,15.828,15.825,168.9033588]
[1673534472705,17.0,15.827,15.825,168.9033588]
[1673534472916,17.0,15.829,15.825,168.9033588]
[1673534473535,20.0,15.828,15.825,157.9033588]
[1673534473958,17.0,15.829,15.825,157.9033588]
[1673534474828,61.24793917,15.828,15.825,37.9033588]
[1673534475010,61.24793917,15.828,15.77,89.83]
[1673534475011,74.74936321,15.823,15.798,116.3626]
[1673534475350,74.74936321,15.823,15.797,155.694805]
[1673534475351,54.31539,15.822,15.797,155.694805]
[1673534475548,6.89894,15.821,15.797,155.694805]
[1673534475758,37.49279118,15.813,15.797,155.694805]
[1673534475968,37.49279118,15.813,15.785,164.9257456]
[1673534475969,35.00744008,15.794,15.785,164.9257456]
[1673534476184,54.3952,15.793,15.785,164.9257456]
[1673534476378,6.9042,15.792,15.785,164.9257456]
[1673534476584,47.5,15.791,15.785,164.9257456]
[1673534476899,1.9042,15.792,15.785,164.9257456]
[1673534477331,0.0042,15.792,15.785,164.9257456]
[1673534477659,0.00744008,15.794,15.786,20.0]
[1673534478919,0.00744008,15.794,15.787,20.0]
[1673534479226,0.00744008,15.794,15.785,164.9257456]
[1673534479440,60.0,15.786,15.785,164.9257456]
[1673534479840,0.00744008,15.794,15.785,164.9257456]
[1673534480279,0.00744008,15.794,15.786,20.0]
[1673534480482,19.15240736,15.794,15.785,164.9257456]
[1673534480891,0.00744008,15.794,15.785,164.9257456]
[1673534481646,0.00744008,15.794,15.786,20.0]
[1673534481868,112.8,15.8,15.794,0.30913992]
[1673534482055,112.8,15.8,15.794,0.62571992]
[1673534482473,64.48,15.799,15.794,0.62571992]
[1673534483331,83.62496728,15.799,15.794,0.62571992]
[1673534483538,64.48,15.799,15.794,0.62571992]
[1673534483759,20.0,15.798,15.794,0.62571992]
[1673534483946,17.0,15.797,15.794,0.62571992]
[1673534484157,64.49,15.797,15.794,0.62571992]
[1673534484593,20.0,15.796,15.794,0.62571992]
[1673534484906,20.0,15.794,15.785,164.9257456]
[1673534485541,19.14496728,15.793,15.785,164.9257456]
[1673534485753,252.4,15.792,15.785,164.9257456]
[1673534486087,272.4,15.792,15.785,164.9257456]
[1673534486269,291.54496728,15.792,15.785,164.9257456]
[1673534486482,19.14496728,15.791,15.785,153.9257456]
[1673534486682,19.14496728,15.791,15.785,112.50184155]
[1673534486683,184.9,15.789,15.785,112.50184155]
[1673534486900,184.9,15.784,15.76,115.1525]
[1673534487104,184.9,15.782,15.753,117.7669]
[1673534487324,184.9,15.78,15.753,117.7669]
[1673534487524,53.13258,15.779,15.753,117.7669]
[1673534487743,190.49258,15.778,15.753,117.7669]
[1673534488055,47.53,15.782,15.753,117.7669]
[1673534488272,36.9830301,15.781,15.753,117.7669]
[1673534488470,36.9830301,15.781,15.754,20.0]
[1673534488690,112.6,15.78,15.754,40.0]
[1673534489010,22.44,15.78,15.754,40.0]
[1673534489220,22.44,15.78,15.755,17.05339596]
[1673534489437,112.52,15.78,15.756,20.0]
[1673534489623,22.52,15.77,15.754,20.0]
[1673534490063,22.52,15.77,15.753,117.7669]
[1673534490254,36.95610038,15.769,15.753,117.7669]
[1673534490678,22.52,15.77,15.754,20.0]
[1673534490994,36.89716705,15.769,15.754,20.0]
[1673534491318,93.35697893,15.776,15.754,20.0]
[1673534492064,22.44,15.78,15.754,37.05339596]
[1673534492252,53.97034257,15.779,15.754,37.05339596]
[1673534492462,53.97034257,15.779,15.731,20.0]
[1673534492463,20.0,15.778,15.731,20.0]
[1673534492675,47.55,15.777,15.732,7.02111]
[1673534492903,184.9,15.776,15.732,7.02111]
[1673534493216,184.9,15.774,15.732,7.02111]
[1673534493410,47.56,15.773,15.733,7.02067]
[1673534493617,22.52,15.77,15.734,20.0]
[1673534493826,5.59258,15.769,15.734,20.0]
[1673534494040,5.59258,15.769,15.735,20.0]
[1673534494255,22.52,15.77,15.736,7.01933]
[1673534494473,47.54,15.779,15.736,7.01933]
[1673534494675,5.59258,15.778,15.737,17.0]
[1673534494889,19.14496728,15.776,15.738,7.01844]
[1673534495095,47.55,15.775,15.739,17.0]
[1673534495302,47.54,15.779,15.74,27.01754]
[1673534495726,36.16570038,15.777,15.74,7.01754]
[1673534495934,47.55,15.776,15.741,119.1774]
[1673534496270,110.81916291,15.777,15.742,7.01665]
[1673534496587,20.0,15.774,15.741,112.1603]
[1673534496904,62.44,15.772,15.701,108.40663353]
[1673534497209,320.49258,15.771,15.725,119.4479]
[1673534497403,112.24,15.75,15.725,119.4479]
[1673534497610,64.63,15.749,15.725,119.4479]
[1673534498141,47.63,15.749,15.725,119.4479]
[1673534498355,21.50499753,15.74,15.725,119.4479]
[1673534498562,111.22499753,15.74,15.725,119.4479]
[1673534499208,111.22499753,15.74,15.71,0.65071001]
[1673534499209,130.36996481,15.74,15.71,0.65071001]
[1673534499415,22.48,15.73,15.71,0.65071001]
[1673534499613,59.124001,15.739,15.713,111.4251]
[1673534499940,45.23574827,15.738,15.713,111.4251]
[1673534500146,88.23327723,15.738,15.713,111.4251]
[1673534500366,42.99752896,15.738,15.725,20.0]
[1673534500564,0.00752896,15.738,15.725,20.0]
[1673534500780,22.38,15.75,15.726,111.4251]
[1673534501093,27.98187,15.75,15.726,111.4251]
[1673534501409,5.60187,15.749,15.728,20.0]
[1673534501841,19.14496728,15.752,15.728,20.0]
[1673534502038,43.56591062,15.755,15.728,20.0]
[1673534502230,19.14496728,15.751,15.728,20.0]
[1673534502444,47.63,15.75,15.728,20.0]
[1673534502654,47.63,15.75,15.726,111.4251]
[1673534503176,184.9,15.755,15.726,111.4251]
[1673534503400,19.14496728,15.749,15.726,111.4251]
[1673534503630,112.75,15.75,15.726,111.4251]
[1673534503933,112.75,15.75,15.727,20.0]
[1673534504145,19.14496728,15.755,15.728,20.0]
[1673534504338,19.14496728,15.754,15.729,20.0]
[1673534504551,47.6,15.759,15.73,20.0]
[1673534504770,5.60187,15.754,15.73,20.0]
[1673534505612,204.04496728,15.759,15.73,20.0]
[1673534505613,184.9,15.757,15.73,20.0]
[1673534505810,66.74496728,15.759,15.731,17.0]
[1673534506021,19.14496728,15.759,15.732,20.0]
[1673534506233,19.14496728,15.759,15.73,20.0]
[1673534506441,22.74,15.76,15.732,20.0]
[1673534506657,22.74,15.76,15.733,1.846]
[1673534507590,66.74496728,15.759,15.733,21.846]
[1673534507832,22.74,15.76,15.734,17.0]
[1673534508025,184.9,15.768,15.734,17.0]
[1673534508026,47.58,15.767,15.734,17.0]
[1673534508223,19.14496728,15.766,15.735,20.0]
[1673534508436,47.58,15.765,15.736,20.0]
[1673534508659,53.18187,15.765,15.737,20.0]
[1673534508872,297.46,15.76,15.737,20.0]
[1673534509187,66.74496728,15.759,15.736,20.0]
[1673534509406,16.849699,15.758,15.733,1.846]
[1673534509828,112.84,15.76,15.733,1.846]
[1673534510021,66.28591062,15.76,15.733,1.846]
[1673534510438,47.58,15.766,15.733,18.846]
[1673534510664,22.6,15.77,15.734,7.02022]
[1673534510864,22.6,15.77,15.735,17.0]
[1673534511070,47.57,15.769,15.736,146.32733]
[1673534511281,19.14496728,15.769,15.738,20.0]
[1673534511497,184.9,15.767,15.738,20.0]
[1673534511816,47.58,15.766,15.738,20.0]
[1673534512013,47.57,15.769,15.738,27.01844]
[1673534512346,22.6,15.77,15.738,27.01844]
[1673534512556,22.6,15.77,15.739,7.01799]
[1673534512752,22.6,15.77,15.739,27.01799]
[1673534512962,232.44,15.779,15.74,17.0]
[1673534513167,47.54,15.779,15.741,27.0171]
[1673534513389,22.69,15.78,15.742,20.0]
[1673534513390,64.36722642,15.78,15.742,20.0]
[1673534513612,19.14496728,15.778,15.744,20.0]
[1673534513807,47.55,15.777,15.744,20.0]
[1673534514016,184.9,15.776,15.742,20.0]
[1673534514229,184.9,15.774,15.738,20.0]
[1673534514550,184.9,15.772,15.738,20.0]
[1673534514746,47.56,15.771,15.738,20.0]
[1673534514962,60.8221937,15.773,15.738,20.0]
[1673534514963,47.56,15.772,15.738,20.0]
[1673534515171,45.6531924,15.77,15.738,27.01844]
[1673534515383,47.57,15.769,15.739,27.01799]
[1673534515711,47.54,15.779,15.74,7.01754]
[1673534515903,47.54,15.779,15.741,26.495]
[1673534516119,47.54,15.779,15.742,17.0]
[1673534516120,251.58496728,15.779,15.742,17.0]
[1673534516334,251.58496728,15.779,15.743,33.51021]
[1673534516535,293.2621937,15.779,15.743,26.494]
[1673534516742,251.58496728,15.779,15.744,20.0]
[1673534516952,251.58496728,15.779,15.745,6.494]
[1673534516953,22.52,15.77,15.745,6.494]
[1673534517173,64.57,15.769,15.746,135.0743]
[1673534517372,64.57,15.769,15.747,6.493]
[1673534517694,64.57,15.769,15.748,20.0]
[1673534517916,87.33041882,15.773,15.749,6.492]
[1673534518115,47.56,15.772,15.75,20.0]
[1673534518324,251.58496728,15.778,15.75,20.0]
[1673534518528,19.14496728,15.776,15.75,20.0]
[1673534518743,47.55,15.775,15.75,20.0]
[1673534519060,112.62,15.78,15.751,7.348]
[1673534519061,47.55,15.777,15.751,7.348]
[1673534519272,47.54,15.779,15.752,20.0]
[1673534519823,47.54,15.779,15.754,20.0]
[1673534520121,47.54,15.779,15.755,20.0]
[1673534520321,47.54,15.779,15.756,7.347]
[1673534520533,47.54,15.779,15.757,117.7823]
[1673534520743,204.04496728,15.778,15.757,117.7823]
[1673534520969,47.55,15.777,15.757,117.7823]
[1673534521580,47.54,15.779,15.757,117.7823]
[1673534521795,47.54,15.779,15.758,27.346]
[1673534522001,47.51,15.789,15.759,17.0]
[1673534522210,47.51,15.789,15.761,20.0]
[1673534522418,47.51,15.789,15.763,20.0]
[1673534522627,47.51,15.789,15.764,20.0]
[1673534522864,22.37,15.79,15.765,17.0]
[1673534523047,22.37,15.79,15.764,20.0]
[1673534523259,184.9,15.788,15.764,20.0]
[1673534523467,232.42,15.787,15.761,20.0]
[1673534523696,22.52,15.78,15.761,20.0]
[1673534523890,22.52,15.78,15.76,108.8856]
[1673534524102,20.0,15.777,15.76,108.8856]
[1673534524434,64.54,15.779,15.76,108.8856]
[1673534524435,64.55,15.776,15.76,108.8856]
[1673534526210,66.10970321,15.758,15.739,20.0]
[1673534526423,66.10970321,15.758,15.748,118.9228]
[1673534527048,66.10970321,15.758,15.739,20.0]
[1673534527256,66.10970321,15.758,15.74,118.9228]
[1673534527472,64.61,15.757,15.74,118.9228]
[1673534528089,20.0,15.755,15.74,118.9228]
[1673534528298,47.62,15.754,15.74,118.9228]
[1673534528522,17.0,15.754,15.74,118.9228]
[1673534528925,66.10970321,15.758,15.74,118.9228]
[1673534529140,66.10970321,15.758,15.741,20.0]
[1673534529768,66.10970321,15.758,15.738,0.3177]
[1673534530206,66.10970321,15.758,15.738,40.3177]
[1673534530822,0.00970321,15.758,15.738,40.3177]
[1673534531043,20.0,15.778,15.741,20.0]
[1673534531258,47.55,15.777,15.742,43.731]
[1673534531463,232.45,15.777,15.742,43.731]
[1673534531787,47.55,15.777,15.742,43.731]
[1673534532100,47.54,15.779,15.743,27.01621]
[1673534532307,47.54,15.779,15.744,43.73]
[1673534532919,47.54,15.779,15.745,7.01532]
[1673534533148,22.38,15.79,15.747,20.0]
[1673534533149,67.51,15.789,15.747,20.0]
[1673534533359,184.9,15.788,15.748,168.07358]
[1673534533575,184.9,15.786,15.75,20.0]
[1673534533780,41.52496728,15.79,15.751,50.73964]
[1673534533781,47.52,15.785,15.751,50.73964]
[1673534533968,47.51,15.789,15.753,20.0]
[1673534534185,20.0,15.788,15.754,37.0]
[1673534534412,184.9,15.786,15.754,37.0]
[1673534534641,112.65,15.79,15.755,7.01086]
[1673534534642,47.52,15.785,15.755,7.01086]
[1673534534983,184.9,15.787,15.756,43.866]
[1673534535155,47.52,15.786,15.76,22.48]
[1673534535486,22.53,15.79,15.761,132.187]
[1673534535487,47.51,15.789,15.761,132.187]
[1673534535689,47.51,15.789,15.762,40.0]
[1673534535904,47.48,15.798,15.763,23.863]
[1673534536109,47.48,15.799,15.764,40.0]
[1673534536322,47.48,15.799,15.765,23.862]
[1673534536644,204.04496728,15.798,15.766,20.0]
[1673534536856,184.9,15.796,15.767,6.861]
[1673534537058,47.49,15.795,15.767,6.861]
[1673534537266,19.14496728,15.796,15.761,115.187]
[1673534537470,184.9,15.794,15.761,115.187]
[1673534537800,184.9,15.792,15.761,115.187]
[1673534537990,22.42,15.78,15.761,115.187]
[1673534538202,47.54,15.779,15.75,20.0]
[1673534538411,47.54,15.779,15.753,113.7381]
[1673534538412,184.9,15.778,15.753,113.7381]
[1673534538626,184.9,15.776,15.753,113.7381]
[1673534538836,64.55,15.775,15.753,113.7381]
[1673534539163,47.55,15.775,15.745,20.0]
[1673534539487,19.14496728,15.776,15.746,113.7381]
[1673534539687,22.52,15.77,15.746,113.7381]
[1673534539907,47.57,15.769,15.746,113.7381]
[1673534540427,17.0,15.768,15.746,113.7381]
[1673534540614,47.58,15.767,15.746,113.7381]
[1673534540826,17.0,15.766,15.746,113.7381]
[1673534541035,47.58,15.765,15.746,113.7381]
[1673534541270,17.0,15.764,15.746,113.7381]
[1673534541453,47.59,15.763,15.746,113.7381]
[1673534541663,17.0,15.762,15.737,20.0]
[1673534542013,22.3,15.76,15.74,109.6501]
[1673534542210,64.6,15.759,15.74,109.6501]
[1673534542426,47.6,15.759,15.74,109.6501]
[1673534542822,47.6,15.759,15.737,20.0]
[1673534543027,22.52,15.75,15.732,109.6501]
[1673534543255,22.52,15.75,15.72,137.3206]
[1673534543256,47.63,15.749,15.725,109.6501]
[1673534543465,66.77496728,15.749,15.725,109.6501]
[1673534543672,17.0,15.748,15.725,109.6501]
[1673534543885,20.0,15.746,15.725,109.6501]
[1673534544101,17.0,15.748,15.725,109.6501]
[1673534544102,64.64,15.745,15.725,109.6501]
[1673534544421,17.0,15.744,15.725,109.6501]
[1673534544606,47.65,15.743,15.725,109.6501]
[1673534544816,17.0,15.742,15.725,109.6501]
[1673534545027,17.0,15.742,15.729,20.0]
[1673534545238,47.63,15.749,15.729,20.0]
[1673534545449,184.9,15.759,15.729,20.0]
[1673534545450,47.61,15.756,15.729,20.0]
[1673534545665,47.6,15.758,15.73,20.0]
[1673534545895,47.6,15.759,15.731,20.0]
[1673534546100,47.6,15.759,15.732,20.0]
[1673534547356,19.14496728,15.766,15.732,20.0]
[1673534547566,184.9,15.764,15.732,20.0]
[1673534547796,19.14496728,15.759,15.732,20.0]
[1673534548004,67.6,15.758,15.732,20.0]
[1673534548321,67.6,15.758,15.73,20.0]
[1673534548518,67.6,15.758,15.72,137.3206]
[1673534548519,22.42,15.75,15.725,109.6501]
[1673534548725,232.53,15.749,15.72,114.7006]
[1673534548947,184.9,15.747,15.72,114.7006]
[1673534549160,87.64,15.746,15.72,114.7006]
[1673534549357,17.0,15.745,15.72,114.7006]
[1673534549563,67.65,15.744,15.72,114.7006]
[1673534549894,17.0,15.743,15.72,114.7006]
[1673534550100,47.65,15.742,15.72,114.7006]
[1673534550435,17.0,15.741,15.72,114.7006]
[1673534550616,47.66,15.74,15.72,114.7006]
[1673534550828,17.0,15.739,15.72,114.7006]
[1673534551059,64.66,15.739,15.72,114.7006]
[1673534551250,47.66,15.738,15.72,114.7006]
[1673534551464,47.97,15.738,15.72,114.7006]
[1673534551675,67.97,15.738,15.72,114.7006]
[1673534552629,20.0,15.737,15.72,114.7006]
[1673534553237,47.67,15.736,15.72,114.7006]
[1673534553447,22.44,15.74,15.725,20.0]
[1673534553682,47.65,15.743,15.725,20.0]
[1673534553896,47.64,15.745,15.725,20.0]
[1673534554202,47.63,15.749,15.726,116.3922]
[1673534554616,47.63,15.749,15.727,20.0]
[1673534554822,47.63,15.749,15.727,37.0]
[1673534555030,47.63,15.749,15.728,38.51]
[1673534555241,184.9,15.748,15.727,20.0]
[1673534555452,47.64,15.747,15.727,20.0]
[1673534555676,47.63,15.749,15.727,20.0]
[1673534555889,113.0,15.74,15.721,18.52]
[1673534556099,22.74,15.74,15.725,20.0]
[1673534556307,17.0,15.739,15.725,20.0]
[1673534557241,47.66,15.738,15.721,134.9122]
[1673534557667,232.56,15.738,15.721,18.52]
[1673534557894,37.0,15.737,15.713,18.53]
[1673534558219,37.0,15.737,15.713,130.1476]
[1673534558620,47.67,15.736,15.713,130.1476]
[1673534558827,17.0,15.735,15.713,150.1476]
[1673534559247,17.0,15.735,15.725,20.0]
[1673534559456,112.82,15.74,15.725,20.0]
[1673534559678,22.74,15.74,15.725,20.0]
[1673534559994,20.0,15.739,15.725,20.0]
[1673534560213,287.78131926,15.739,15.715,18.53]
[1673534560406,22.29,15.73,15.713,129.7276]
[1673534560609,112.56,15.73,15.71,0.65071001]
[1673534560833,37.0,15.729,15.71,0.65071001]
[1673534561049,184.9,15.728,15.71,0.65071001]
[1673534561264,22.48,15.72,15.71,0.65071001]
[1673534562085,40.50798593,15.727,15.71,0.65071001]
[1673534562312,22.52,15.72,15.71,155.47457501]
[1673534562517,113.04,15.72,15.71,155.47457501]
[1673534562715,51.89274092,15.727,15.711,20.0]
[1673534563051,252.59,15.729,15.711,20.0]
[1673534563242,22.52,15.72,15.711,20.0]
[1673534563662,20.0,15.719,15.711,20.0]
[1673534563893,17.0,15.718,15.711,20.0]
[1673534564411,17.0,15.718,15.711,154.823865]
[1673534564608,43.63841122,15.717,15.711,154.823865]
[1673534564815,43.63841122,15.717,15.705,17.54]
[1673534564816,17.0,15.716,15.705,17.54]
[1673534565148,258.85418785,15.716,15.704,168.9033588]
[1673534565340,184.9,15.714,15.704,124.8733588]
[1673534565546,112.6,15.71,15.704,124.8733588]
[1673534565755,297.58,15.71,15.704,124.8733588]
[1673534565974,20.0,15.709,15.704,124.8733588]
[1673534566186,283.40098574,15.709,15.704,124.8733588]
[1673534566412,35.50477452,15.708,15.704,124.8733588]
[1673534566934,20.0,15.707,15.704,40.14215532]
[1673534567139,60.20294456,15.707,15.704,0.00215532]
[1673534567359,257.76381949,15.706,15.704,0.00215532]
[1673534567763,237.56087493,15.705,15.704,0.00215532]
[1673534567968,325.52381949,15.705,15.704,0.00215532]
[1673534568198,87.96294456,15.705,15.704,0.00215532]
[1673534568411,42.93798639,15.707,15.704,0.00215532]
[1673534569235,5.71198,15.706,15.704,0.00215532]
[1673534569564,22.3,15.71,15.704,0.00215532]
[1673534569771,22.3,15.71,15.7,20.0]
[1673534569772,26.2583215,15.705,15.7,20.0]
[1673534569991,184.9,15.703,15.7,20.0]
[1673534570207,47.77,15.702,15.7,20.0]
[1673534570387,108.62773821,15.708,15.7,20.0]
[1673534570720,42.63238901,15.712,15.7,20.0]
[1673534570935,112.52,15.72,15.7,20.0]
[1673534571121,48.62469712,15.718,15.701,11.97]
[1673534571327,39.81138626,15.719,15.701,429.5955098]
[1673534571552,39.81138626,15.717,15.702,20.0]
[1673534571775,39.81138626,15.717,15.701,417.6255098]
[1673534571963,51.05136378,15.718,15.702,31.97]
[1673534572175,39.81138626,15.726,15.702,31.97]
[1673534572380,46.61905568,15.725,15.703,116.7291]
[1673534572703,52.33974568,15.725,15.705,20.0]
[1673534572915,5.72069,15.724,15.706,20.0]
[1673534573446,39.81138626,15.723,15.706,276.6018776]
[1673534573663,47.79876378,15.723,15.707,20.0]
[1673534573867,46.61905568,15.724,15.707,20.0]
[1673534574068,207.43,15.73,15.707,20.0]
[1673534574284,297.51,15.73,15.707,20.0]
[1673534574593,22.3,15.72,15.707,20.0]
[1673534575426,232.59,15.729,15.707,276.6018776]
[1673534575427,40.39543568,15.726,15.707,276.6018776]
[1673534575632,40.39543568,15.726,15.709,20.0]
[1673534575848,51.67673293,15.73,15.71,20.0]
[1673534576171,69.35216861,15.729,15.71,20.0]
[1673534576379,40.39543568,15.729,15.711,17.0]